Cogmind - Beta 16 --- EXPLORER MODE // 2026.01.27 @ 09:39:37 Player: K.K.Y. Result: Destroyed by Piercing Trap Performance ------------- Evolutions (0) 0 Regions Visited (3) 600 Robots Destroyed (47) 235 Value Destroyed (1009) 1009 Prototype IDs (12) 240 Alien Tech Used (0) 0 Bonus (-34) -34 TOTAL SCORE: 2050 Bonus ------- Friendly Fire -34 Cogmind --------- Core Integrity 0/250 Matter 295/300 Energy 166/170 System Corruption 0% Temperature Cool (2) Movement Treading (240) Ox1 Location -10/Subcaves Parts ------- > --- POWER (1) -------- Makeshift Power Source > --- PROPULSION (2) --- Light Treads > --- UTILITY (3) ------ Improved Heat Sink Medium Storage Unit Structural Scanner > --- WEAPON (2) ------- Makeshift Shrapnel Gun Heavy Hammer > --- INVENTORY (10) --- Improved Ion Engine Improved Heat Sink Improved Heat Sink Compact Matter Pod (150) Improved Terrain Scanner Authchip [Power] Authchip [Device] Beamcaster Datajack Mining Laser Peak State ------------ > --- POWER ------------ Light Nuclear Core > --- PROPULSION ------- Light Treads Spiked Treads > --- UTILITY ---------- Improved Heat Sink Medium Storage Unit Structural Scanner > --- WEAPON ----------- Makeshift Shrapnel Gun Heavy Hammer > --- INVENTORY -------- Improved Ion Engine Improved Heat Sink Improved Heat Sink Compact Matter Pod Improved Terrain Scanner Authchip [Power] Authchip [Device] Beamcaster Datajack Mining Laser [Rating: 19] Favorites ----------- Power Ion Engine Engine Ion Engine Power Core Light Nuclear Core Propulsion Light Treads Treads Light Treads Utility Medium Storage Unit Device Improved Heat Sink Storage Medium Storage Unit Weapon Heavy Hammer Energy Gun Particle Gun Energy Cannon Subdweller Beam Cannon Ballistic Gun Assault Rifle Impact Weapon Heavy Hammer Build | -11 -10 -10 -10 ------- Run | Yrd Mat Min Sub Slots Evolved 1 | . 1 . . Power . | . . . . Propulsion . | . . . . Utility 1 | . 1 . . Weapon . | . . . . Parts Attached 23 | 6 6 1 10 Power 4 | 1 1 . 2 Engine 3 | 1 1 . 1 Core 1 | . . . 1 Reactor . | . . . . Propulsion 7 | 2 2 . 3 Treads 7 | 2 2 . 3 Leg . | . . . . Wheel . | . . . . Hover . | . . . . Flight . | . . . . Utility 5 | 1 2 . 2 Device 4 | . 2 . 2 Storage 1 | 1 . . . Processor . | . . . . Hackware . | . . . . Protection . | . . . . Artifact . | . . . . Weapon 7 | 2 1 1 3 Energy Gun 2 | . 1 . 1 Energy Cannon 1 | . . . 1 Ballistic Gun 3 | 2 . . 1 Ballistic Cannon . | . . . . Launcher . | . . . . Special Weapon . | . . . . Impact Weapon 1 | . . 1 . Slashing Weapon . | . . . . Piercing Weapon . | . . . . Special Melee Weapon . | . . . . Unidentified Prototypes . | . . . . Parts Lost 5 | . . 2 3 Power 1 | . . . 1 Propulsion 2 | . . . 2 Utility . | . . . . Weapon 2 | . . 2 . Highest Loss Streak 2 | . . 2 1 To Critical Strikes . | . . . . Average Backups 8 | . 5 8 9 Power . | . . 1 . Propulsion . | . . . . Utility 4 | . 1 4 6 Weapon 1 | . 1 1 2 Tool/Special . | . . . . Unused Backups 12 | . 2 . 10 Power 1 | . . . 1 Propulsion 1 | . 1 . . Utility 6 | . . . 6 Weapon 3 | . 1 . 2 Tool/Special 1 | . . . 1 Average Slot Usage (%) 88 | . 80 89 93 Engine 8 | . 11 12 5 Core 2 | . . . 4 Treads 23 | . 25 25 20 Device 19 | . 6 25 25 Storage 12 | . 12 12 12 Energy Gun 2 | . 2 2 1 Energy Cannon 1 | . . . 3 Ballistic Gun 9 | . 21 2 5 Impact Weapon 8 | . . 9 12 Peak Build Rating 19 | 6 12 13 19 Average Rating 12 | 5 7 11 16 On Entrance 7 | . 6 12 13 Avg Prop Armor Cover (%) . | . . . . Naked Turns . | . . . . Heaviest Build 28 | 19 22 22 28 Greatest Support 40 | 40 40 40 40 Greatest Overweight (x) 1 | . . . 1 Average Overweight (x) . | . . . . Largest Inventory Capacity 10 | 10 10 10 10 Average Capacity 9 | 9 10 10 10 Most Carried 10 | 5 10 10 10 Average Carried 8 | . 5 8 9 Final Capacity 10 | 10 10 10 10 Final Carried 10 | 2 7 10 10 Class Distribution -------------------- 82% | Hacker-Mutant 17% | Scavenger-Mutant Dominant Class ---------------- Hacker-Mutant | -10/Materials Hacker-Mutant | -10/Mines Hacker-Mutant | -10/Subcaves Resources | -11 -10 -10 -10 ----------- Run | Yrd Mat Min Sub Matter Collected 867 | 308 298 106 155 Remotely . | . . . . Salvage Created 1501 | 190 426 320 565 Parts 95 | 14 40 4 37 Haulers Intercepted 2 | . 2 . . Recyclers Shooed 1 | . 1 . . Parts Field Recycled . | . . . . Retrieved Matter . | . . . . Parts Self-Destructed . | . . . . Prevented . | . . . . Parts Restored . | . . . . Kills | -11 -10 -10 -10 ------- Run | Yrd Mat Min Sub Combat Hostiles Destroyed 35 | . 9 11 15 Melee 4 | . . 1 3 Guns 19 | . 9 6 4 Cannons 4 | . . . 4 Classes Destroyed 14 | 3 5 2 4 Worker 4 | 2 . 2 . Builder 2 | . 1 1 . Tunneler 4 | 4 . . . Hauler 2 | . 2 . . Recycler 3 | 1 1 1 . Turret 2 | . . . 2 Watcher 2 | . 2 . . Swarmer 9 | . 5 . 4 Grunt 9 | . 4 3 2 Sentry 1 | . . . 1 Demolisher 1 | . . 1 . Artisan 2 | . . . 2 Subdweller 8 | . . . 8 Assembled 7 | . . 7 . Best Kill Streak 6 | 3 2 6 6 Combat Bots Only 6 | . 2 6 4 Max Kills in Single Turn 2 | 1 2 1 1 Gunslinging 1 | . 1 . . Exploded . | . . . . Melee 1 | . . 1 1 Uniques/NPCs Destroyed . | . . . . Combat | -11 -10 -10 -10 -------- Run | Yrd Mat Min Sub Hostile Shots Fired 201 | . 43 32 126 Missed 58 | . 18 8 32 Hits 143 | . 25 24 94 Melee 5 | . . 5 . Projectile 138 | . 25 19 94 AOE 2 | . . . 2 Critical Strikes 3 | . . 2 1 Part Disruptions 1 | . . 1 . Damage Taken 1330 | . 190 244 896 Core 270 | . 32 54 184 Absorbed by Shields . | . . . . Ignored by Resistances 794 | . 124 149 521 Core Remaining (%) 100 | 100 . . . Volleys Fired 120 | 8 36 18 58 Largest 2 | 2 2 2 1 Hottest 85 | 40 40 85 80 Shots Fired 173 | 16 72 27 58 Gun 135 | 16 72 27 20 Cannon 38 | . . . 38 Launcher . | . . . . Special . | . . . . Kinetic 116 | 16 72 15 13 Thermal 57 | . . 12 45 Explosive . | . . . . Electromagnetic . | . . . . Robot Hit Streak 34 | 8 29 34 30 Robot Miss Streak 2 | 1 2 2 1 Penetration Max . | . . . . Secondary Targets 4 | . 2 2 . Max Gunslinging Chain 1 | . 1 1 . Shots Hit Robots 173 | 10 58 40 65 Core Hits 68 | 7 21 15 25 Critical Kills 2 | . 1 1 . Critical Parts Destroyed 5 | . . 4 1 Critical Strikes 8 | . 1 6 1 Burn 1 | . . 1 . Destroy 1 | . 1 . . Smash 6 | . . 5 1 Melee Attacks 67 | . . 18 49 Impact 67 | . . 18 49 Slashing . | . . . . Piercing . | . . . . Sneak Attacks 4 | . . 4 . Combat Hostiles . | . . . . Follow-up Attacks . | . . . . Damage Inflicted 3585 | 121 726 1017 1721 Guns 1541 | 121 726 317 377 Cannons 596 | . . . 596 Explosions . | . . . . Melee 1448 | . . 700 748 Ramming . | . . . . Kinetic 1273 | 121 726 136 290 Thermal 864 | . . 181 683 Explosive . | . . . . Electromagnetic . | . . . . Impact 1448 | . . 700 748 Slashing . | . . . . Piercing . | . . . . Highest Corruption . | . . . . Average Corruption . | . . . . Corruption Purged . | . . . . Corruption Blocked . | . . . . Overload Shots . | . . . . Overflow Damage 438 | . . 292 146 Projectiles 28 | . . . 28 Explosions . | . . . . Melee 410 | . . 292 118 Knockbacks 9 | . . 3 6 Impact 9 | . . 3 6 Kinetic . | . . . . Secondary . | . . . . Self-Inflicted Damage . | . . . . Shots . | . . . . Rammed . | . . . . Targets Rammed . | . . . . Kicked . | . . . . Crushed . | . . . . Highest Temperature 58 | . 2 58 . Average Temperature 27 | . 2 37 . Received Heat Transfer 650 | . 99 245 306 Siege Activations . | . . . . Martial Activations . | . . . . Shielding Activations . | . . . . Robots Disrupted . | . . . . Combat Hostiles . | . . . . Robots Corrupted 11 | . . 7 4 Combat Hostiles 8 | . . 4 4 Parts Fried 9 | . . 6 3 Impact Corruptions 19 | . . 13 6 Robots Melted . | . . . . Combat Hostiles . | . . . . Parts Melted . | . . . . Heat Transferred 1554 | . . 518 1036 Parts Sabotaged . | . . . . Parts Stolen . | . . . . Parts Stripped . | . . . . Power Chain Reactions . | . . . . Alert | -11 -10 -10 -10 ------- Run | Yrd Mat Min Sub Maximum Alert Level . | . . . . Low Security (%) 100 | 100 100 100 . Level 1 . | . . . . Level 2 . | . . . . Level 3 . | . . . . Level 4 . | . . . . Level 5 . | . . . . High Security . | . . . . Max Security . | . . . . Peak Influence 51 | 15 51 50 . Initial . | . . . . Average 4 | 1 5 3 . Influence Increases 651 | 35 260 146 210 Destroy 0b10 Robot/C 440 | . 180 80 180 Destroy 0b10 Robot/NC 85 | 35 30 20 . Destroy Leader 78 | . 48 30 . Destroy Structure 3 | . 2 1 . Lose Combat Pursuer 45 | . . 15 30 Influence Decreases 651 | 35 260 146 210 Time Decay 641 | 35 260 146 200 Lost Part 10 | . . . 10 Squads Dispatched . | . . . . Investigation . | . . . . Extermination . | . . . . Reinforcement . | . . . . Assault . | . . . . Garrison . | . . . . Intercept . | . . . . Searches Triggered . | . . . . Construction Impeded . | . . . . Haulers Reinforced . | . . . . Active Scanning Responses . | . . . . Cargo Convoy Interrupts . | . . . . Stealth | -11 -10 -10 -10 --------- Run | Yrd Mat Min Sub Distress Signals 2 | . 2 . . Communications Jammed . | . . . . Distress Signals . | . . . . Times Spotted 55 | . 13 20 22 Peak Tracking Total 9 | . 2 9 5 Tactical Retreats 3 | . . 2 1 Traps | -11 -10 -10 -10 ------- Run | Yrd Mat Min Sub Traps Triggered 5 | . 4 . 1 Indirectly . | . . . . Trap Hack Attempts . | . . . . Triggered . | . . . . Disarmed . | . . . . Reprogrammed . | . . . . Reused . | . . . . Traps Extracted . | . . . . Installed . | . . . . Triggered . | . . . . Machines | -11 -10 -10 -10 ---------- Run | Yrd Mat Min Sub Machines Disabled . | . . . . Max in Single Turn . | . . . . Machines Repaired . | . . . . Machines Dismantled . | . . . . Machines Sabotaged . | . . . . Overloaded Fab Kills . | . . . . Hacking | -11 -10 -10 -10 --------- Run | Yrd Mat Min Sub Machines Accessed 11 | . 9 . 2 Terminals 8 | . 8 . . Fabricators . | . . . . Repair Stations . | . . . . Recycling Units 1 | . 1 . . Scanalyzers . | . . . . Garrison Access . | . . . . Total Hacks 20 | . 16 . 4 Successful 16 | . 12 . 4 Failed 4 | . 4 . . Catastrophic . | . . . . Database Lockouts . | . . . . Manual 11 | . 11 . . Terminals 15 | . 15 . . Fabricators . | . . . . Repair Stations . | . . . . Recycling Units 1 | . 1 . . Scanalyzers . | . . . . Garrison Access . | . . . . Terminal Hacks 7 | . 3 . 4 Record 3 | . . . 3 Robot Analysis 1 | . 1 . . Locate Traps 2 | . 2 . . Proto ID Catalog 1 | . . . 1 Fabricator Hacks . | . . . . Repair Station Hacks . | . . . . Recycling Unit Hacks 1 | . 1 . . Retrieve Components 1 | . 1 . . Scanalyzer . | . . . . Garrison Access Hacks . | . . . . Unauthorized Hacks 8 | . 8 . . Terminals 8 | . 8 . . Botnet 8 | . 8 . . Fabricators . | . . . . Repair Stations . | . . . . Recycling Units . | . . . . Scanalyzers . | . . . . Garrison Access . | . . . . Data Cores Recovered . | . . . . Used . | . . . . Hacking Detections 3 | . 3 . . Full Trace Events 1 | . 1 . . Feedback Events . | . . . . Feedback Blocked . | . . . . Robot Schematics Acquired . | . . . . Robots Built . | . . . . Authchips . | . . . . Time . | . . . . Total Robot Build Rating . | . . . . Part Schematics Acquired . | . . . . Parts Built . | . . . . Authchips . | . . . . Time . | . . . . Total Part Build Rating . | . . . . Part Studies Acquired . | . . . . Parts Repaired . | . . . . Time . | . . . . Parts Recycled . | . . . . Recycled Matter . | . . . . Retrieved Matter . | . . . . Retrieved Components 9 | . 9 . . Parts Scanalyzed . | . . . . Part Schematics Acquired . | . . . . Parts Damaged . | . . . . Bothacking | -11 -10 -10 -10 ------------ Run | Yrd Mat Min Sub Used RIF Installer . | . . . . Robots Hacked . | . . . . Non-combat . | . . . . Combat . | . . . . Robot Hacks Applied . | . . . . Relay Couplers Released . | . . . . Fabnet Peak Effective % . | . . . . Robots Rewired . | . . . . Allies Hacked . | . . . . Hacks Repelled . | . . . . Allies | -11 -10 -10 -10 -------- Run | Yrd Mat Min Sub Total Allies 2 | . . 2 . Largest Group 2 | . . 2 1 Highest-Rated Group 38 | . . 38 7 Highest-Rated Ally 31 | . . 31 7 Total Orders . | . . . . Ally Attacks 5 | . . 5 . Total Damage 84 | . . 84 . Kills . | . . . . Allies Corrupted . | . . . . Allies Melted . | . . . . Intel | -11 -10 -10 -10 ------- Run | Yrd Mat Min Sub Active Infowar (turns) 3942 | . 317 1185 2440 Structural 3942 | . 317 1185 2440 Robot Analysis Total 1 | . 1 . . Derelict Logs Recovered 2 | . . 1 1 Drone Launches . | . . . . Drone Recoveries . | . . . . Exploration | -11 -10 -10 -10 ------------- Run | Yrd Mat Min Sub Turns Passed 5111 | 162 1324 1185 2440 Spaces Moved 2536 | 88 716 618 1114 Core 14 | 14 . . . Treads 2522 | 74 716 618 1114 Legs . | . . . . Wheels . | . . . . Hover . | . . . . Flight . | . . . . Fastest Speed 50 | 50 160 160 160 Average Speed 168 | 142 160 160 181 Slowest Speed 240 | 160 160 160 240 Overloaded Moves . | . . . . Propulsion Burnouts . | . . . . Robots Hopped . | . . . . Potential Cave-ins . | . . . . Cave-ins Triggered . | . . . . Exploration Rate (%) 67 | 7 96 98 68 Regions Visited 3 Branch Regions 2 Pre-discovered Areas 1 | . . . 1 Known Exits Taken 3 | 1 1 1 . Unknown Exits Taken . | . . . . Scrap Searched 3 | . . . 3 Spaces Dug 4 | . . 1 3 Terrain Destroyed 5 | . . 1 4 Melee 4 | . . 1 3 Projectile 1 | . . . 1 AOE . | . . . . Terrain Rammed . | . . . . Walls Destroyed . | . . . . Machines Disabled . | . . . . Actions | -11 -10 -10 -10 --------- Run | Yrd Mat Min Sub Total 3080 | 109 823 756 1392 Wait 287 | . 38 98 151 Move 2533 | 87 715 617 1114 Hop . | . . . . Pick Up 32 | 8 17 4 3 Fast Attach 3 | . 1 . 2 Attach 14 | 6 6 1 1 Detach . | . . . . Swap 12 | . 4 . 8 Drop 12 | . 6 . 6 Fire 120 | 8 36 18 58 Melee 67 | . . 18 49 Ram . | . . . . Kick . | . . . . Crush . | . . . . Escape Stasis . | . . . . Rewire . | . . . . Trap . | . . . . Miscellaneous . | . . . . Route ------- -11/Scrapyard -10/Materials (discovered 5 exits: *Mat x3 / *Min x2) -10/Mines (discovered 3 exits: *Mat x2 / *Sub) -10/Subcaves (discovered 3 exits: *Mat x2 / *Rec) History --------- Turn | Location | Event 9 | -11/Scrapyard | Identified exit to Materials 9 | -11/Scrapyard | Discovered exit to Materials (range 15) 163 | -11/Scrapyard | Entered Materials 163 | -10/Materials | Evolved 1 slot: Utility x1 163 | -10/Materials | Identified exit to Mines 163 | -10/Materials | Discovered exit to Mines (range 15) 316 | -10/Materials | Build established: Hacker-Mutant 387 | -10/Materials | Discovered exit to Mines (range 14) 462 | -10/Materials | Identified exit to Materials 462 | -10/Materials | Discovered exit to Materials (range 16) 903 | -10/Materials | Discovered exit to Materials (range 13) 1288 | -10/Materials | Discovered exit to Materials (range 15) 1460 | -10/Materials | Build established: Scavenger-Mutant 1487 | -10/Materials | Entered Mines 1653 | -10/Mines | Assembled infested the area 1658 | -10/Mines | Assisted by a Guerilla fighting off Assembled 2016 | -10/Mines | Discovered exit to Materials (range 10) 2026 | -10/Mines | Build established: Hacker-Mutant 2094 | -10/Mines | Discovered exit to Materials (range 7) 2645 | -10/Mines | Identified exit to Subcaves 2645 | -10/Mines | Discovered exit to Subcaves (range 10) 2672 | -10/Mines | Entered Subcaves 2672 | -10/Subcaves | Accompanied by 1 ally 2673 | -10/Subcaves | Approached by a straggling Scientist 2679 | -10/Subcaves | Learned location of Storage (-9) 2711 | -10/Subcaves | Visited Clippyterm 2716 | -10/Subcaves | Learned Research security intel 2983 | -10/Subcaves | Shifting Twisted Machinery released Spk. Treads 2987 | -10/Subcaves | Shifting Twisted Machinery released Flamer 3171 | -10/Subcaves | Core integrity fell below 50% 3306 | -10/Subcaves | Shifting Twisted Machinery released Flamer 3309 | -10/Subcaves | Shifting Twisted Machinery released Sub. Power Source 3726 | -10/Subcaves | Identified exit to Materials 3726 | -10/Subcaves | Discovered exit to Materials (range 7) 3948 | -10/Subcaves | Build established: Scavenger-Mutant 4014 | -10/Subcaves | Visited 4L-MR0's lab 4123 | -10/Subcaves | Discovered exit to Materials (range 16) 4151 | -10/Subcaves | Core integrity fell below 20% 4162 | -10/Subcaves | Identified exit to Recycling 4162 | -10/Subcaves | Discovered exit to Recycling (range 16) 4277 | -10/Subcaves | Build established: Hacker-Mutant 4410 | -10/Subcaves | Disturbed a concealed Subdweller 4956 | -10/Subcaves | A swath of the cavern ceiling suddenly collapsed 5046 | -10/Subcaves | Shifting Twisted Machinery released Sub. Laser 5096 | -10/Subcaves | A swath of the cavern ceiling suddenly collapsed 5112 | -10/Subcaves | Destroyed by Piercing Trap Last Messages --------------- Twisted Machinery. 04413_ Acquired 10 matter. 04419_ Acquired 5 matter. 04423_ UD-2BU(R) suffers critical hit (Smash). 04423_ Destroyed Disposable Heat Sink. 04423_ UD-2BU(R) system corrupted by crushing effect. 04424_ UD-2BU(R) system terminally corrupted. 04913_ Acquired Lgt. Treads. A swath of the cavern ceiling suddenly collapses. Sub. Laser falls loose from the Twisted Machinery. A swath of the cavern ceiling suddenly collapses. 05112_ Triggered Piercing Trap. 05112_ Spikes shoot up from the floor. 05112_ Critical hit (Impale). 05112_ Lgt. Treads destroyed. 05112_ Critical hit (Impale). Map ----- +----------------------------------------------------+ | ?????????????????????????????????????????????????? | | ?????????????????????????????????????????????????? | | ?????????????????????????????????????????????????? | | ?????????????????????????????????????????????????? | | ?????????????????????????????????????????????????? | | ?????????????????????????????????????????????????? | | ?????????????????????????????????????????????????? | | ?????????????????????????????????????????????????? | | ?????????????????????????????????????????????????? | | ?????????????????????????????????????????????????? | | ?????????????????????????????????????????????????? | | ?????????????????????????????????????????????????? | | ?????????????????????????????????????????????????? | | ?????????????????????????????????????????????????? | | ?????????????????????????????????????????????????? | | ?????????????????????????????????????????????????? | | ?????????????????????????###?????????????????????? | | ???????????????????????#### ?????????????????????? | | ???????????????????????### ?????????????????????? | | ???????????????????????## ?????????????????????? | | ??????????????????????? ##?????????????????????? | | ???????????????????????? ##?????????????????????? | | ???????????????????????# ###????????????????????? | | ??????????????????????### ###??????????????????? # | | ??????????????????????### ##??????????????????? # | | ??????????????????????## @ ###?????????????????"" | | ??????????????????????## ###?????????????????"" | | ??????????????????????###;; ##???????????????##" | | ??????????????????????##;;;###???????????????###" | | ?????????????????????####;##############?????##" | | ????????????????????######;###############""### | | ????????????????????####"#;"#### # #####"#### | | ???????????????## ??## "##" #" "####""### | | ???????????????## ""###""" # ##" ###"""## | | ???????????????## #"########### ""###""#" | | ???????????????### # ########## " ##""""" | | ???????????????### ## ??????????### [ | | ?????????????????? ## ???????????##### ## ## | | ?????????????????? # ?????????????##### ###### | | ??????????????????#### ???????????????########### | | ??????????????????######????????????????#####??### | | ????????????????????####?????????????????????????? | | ?????????????????????????????????????????????????? | | ?????????????????????????????????????????????????? | | ?????????????????????????????????????????????????? | | ?????????????????????????????????????????????????? | | ?????????????????????????????????????????????????? | | ?????????????????????????????????????????????????? | | ?????????????????????????????????????????????????? | | ?????????????????????????????????????????????????? | +----------------------------------------------------+ Best States ------------- Heat Dissipation 39 Energy Generation 15 Energy Capacity 250 Matter Stores 300 Matter Capacity 300 Sight Range 16 Terrain Scan Density 10 Resistance: KI 35 Resistance: TH 35 Resistance: EX 35 Resistance: EM 35 Resistance: I 35 Resistance: S 35 Resistance: P 35 Evasion (%) 50 Recoil Reduction 2 Offensive Hacking 20 Authchip Count 2 Item Schematics ----------------- None Robot Schematics ------------------ None Fabricated ------------ Nothing Repaired ---------- Nothing Studied --------- None Alien Tech Used ----------------- None Achievements -------------- None Challenges ------------ None Game ------ Seed StealthDecoderRouter Manual? 0 Play Time 00:20:45 Cumulative 312.2 hours Start 2026.01.27 @ 09:21:46 End 2026.01.27 @ 09:39:37 Sessions 1 Manual Loads 0 Difficulty Explorer Special Mode None Game No. 488 Rogue 0 Adventurer 0 Explorer 488 Win Type - Total 0 Types 0/0/0/0/0/0/0/0/0/0 Lore% 77 Gallery% 70 Achievement% 56 Wizard Run 0 Options --------- Layout 1 ASCII 0 Keyboard 0 Movement Mouse Keybinds 1 Fullscreen 1 Font 24/Smallcaps Map View 50x35 Zoom Use 0% Tactical HUD 1 Map Filters NONE Filters NONE Steam 1 RUN: 00086f97-94b4-47a4-9640-58ee01111704